Cogmind - Beta 16.1 @@@ ROGUE MODE // 2026.02.18 @ 22:39:07 Player: AlmondRoll Result: Destroyed by 0T-LJ8(R) with Subdweller Machine Gun Performance ------------- Evolutions (0) 0 Regions Visited (2) 400 Robots Destroyed (34) 170 Value Destroyed (731) 731 Prototype IDs (4) 80 Alien Tech Used (0) 0 Bonus (0) 0 TOTAL SCORE: 1381 Bonus ------- None Cogmind --------- Core Integrity 0/250 Matter 291/300 Energy 94/100 System Corruption 0% Temperature Cool (0) Movement Treading (240) Ox1 Location -10/Subcaves Parts ------- > --- POWER (1) -------- (None) > --- PROPULSION (2) --- Light Treads > --- UTILITY (2) ------ Large Storage Unit Structural Scanner > --- WEAPON (2) ------- Light Assault Rifle Light Assault Rifle > --- INVENTORY (15) --- Light Treads Light Treads Compact Wheel Subdweller Monowheel Heat Sink ECM Suite Cobbler Unit EM Pulse Gun Subdweller Laser Light Assault Rifle Grenade Launcher Subdweller Shrapnel Launcher Mining Claw Peak State ------------ > --- POWER ------------ Ion Engine > --- PROPULSION ------- Light Treads Light Treads > --- UTILITY ---------- Large Storage Unit Light Armor Plating > --- WEAPON ----------- Subdweller Laser Subdweller Laser > --- INVENTORY -------- Light Treads Light Treads Compact Wheel Heat Sink Structural Scanner ECM Suite EM Pulse Gun Light Assault Rifle Light Assault Rifle Light Assault Rifle Grenade Launcher Subdweller Shrapnel Launcher Mining Claw [Rating: 10] Favorites ----------- Power Ion Engine Engine Ion Engine Propulsion Light Treads Treads Light Treads Leg Aluminum Leg Utility Large Storage Unit Device Structural Scanner Storage Large Storage Unit Protection Light Armor Plating Weapon Assault Rifle Energy Gun Subdweller Laser Energy Cannon Beam Cannon Ballistic Gun Assault Rifle Launcher Grenade Launcher Build | -11 -10 -10 ------- Run | Yrd Mat Sub Slots Evolved . | . . . Power . | . . . Propulsion . | . . . Utility . | . . . Weapon . | . . . Parts Attached 18 | 4 6 8 Power 1 | . . 1 Engine 1 | . . 1 Core . | . . . Reactor . | . . . Propulsion 4 | 2 . 2 Treads 4 | 2 . 2 Leg . | . . . Wheel . | . . . Hover . | . . . Flight . | . . . Utility 6 | 1 4 1 Device 3 | 1 2 . Storage 1 | . 1 . Processor . | . . . Hackware . | . . . Protection 2 | . 1 1 Artifact . | . . . Weapon 7 | 1 2 4 Energy Gun 2 | . . 2 Energy Cannon 1 | . 1 . Ballistic Gun 3 | 1 . 2 Ballistic Cannon . | . . . Launcher 1 | . 1 . Special Weapon . | . . . Impact Weapon . | . . . Slashing Weapon . | . . . Piercing Weapon . | . . . Special Melee Weapon . | . . . Unidentified Prototypes . | . . . Parts Lost 9 | . . 9 Power 2 | . . 2 Propulsion 3 | . . 3 Utility 2 | . . 2 Weapon 2 | . . 2 Highest Loss Streak 3 | . . 3 To Critical Strikes 1 | . . 1 Average Backups 11 | 6 10 13 Power . | 1 . . Propulsion 3 | 4 3 3 Utility 3 | . 3 3 Weapon 4 | 1 3 6 Tool/Special . | . . . Unused Backups 19 | . 7 12 Power 3 | . 2 1 Propulsion 8 | . 4 4 Utility 3 | . 1 2 Weapon 5 | . . 5 Tool/Special . | . . . Average Slot Usage (%) 95 | . 100 88 Engine 10 | . 14 4 Treads 27 | . 28 27 Device 11 | . 13 8 Storage 14 | . 14 14 Protection 2 | . . 5 Energy Gun 2 | . . 7 Energy Cannon 4 | . 5 1 Ballistic Gun 19 | . 22 13 Launcher 1 | . . 4 Peak Build Rating 10 | 7 8 10 Average Rating 7 | 6 7 7 On Entrance 7 | 6 7 8 Avg Prop Armor Cover (%) . | . . . Naked Turns . | . . . Heaviest Build 36 | 14 31 36 Greatest Support 40 | 40 40 40 Greatest Overweight (x) 1 | . . 1 Average Overweight (x) . | . . . Largest Inventory Capacity 15 | 8 15 15 Average Capacity 12 | 8 11 15 Most Carried 15 | 8 15 15 Average Carried 11 | 6 10 14 Final Capacity 15 | 8 15 15 Final Carried 15 | 6 15 14 Class Distribution -------------------- 88% | Mutant 11% | Scavenger-Mutant Dominant Class ---------------- Mutant | -10/Materials Mutant | -10/Subcaves Resources | -11 -10 -10 ----------- Run | Yrd Mat Sub Matter Collected 877 | 268 305 304 Remotely . | . . . Salvage Created 1137 | 95 443 599 Parts 87 | 4 41 42 Haulers Intercepted 2 | . 2 . Recyclers Shooed 1 | . 1 . Parts Field Recycled . | . . . Retrieved Matter . | . . . Parts Self-Destructed 25 | . . 25 Prevented . | . . . Parts Restored . | . . . Kills | -11 -10 -10 ------- Run | Yrd Mat Sub Combat Hostiles Destroyed 26 | . 12 14 Guns 20 | . 10 10 Cannons 1 | . . 1 AOE 5 | . 2 3 Classes Destroyed 10 | 2 6 2 Worker 1 | . 1 . Tunneler 1 | 1 . . Hauler 2 | . 2 . Recycler 2 | 1 1 . Operator 1 | . 1 . Watcher 1 | . 1 . Swarmer 12 | . 9 3 Grunt 6 | . 3 3 Sentry 1 | . . 1 Subdweller 7 | . . 7 Best Kill Streak 4 | 2 4 3 Combat Bots Only 4 | . 4 3 Max Kills in Single Turn 2 | 1 2 2 Gunslinging 1 | . . 1 Exploded 2 | . 2 1 Melee . | . . . Uniques/NPCs Destroyed . | . . . Combat | -11 -10 -10 -------- Run | Yrd Mat Sub Hostile Shots Fired 147 | . 73 74 Missed 57 | . 30 27 Hits 90 | . 43 47 Projectile 90 | . 43 47 AOE 6 | . 1 5 Critical Strikes 1 | . . 1 Damage Taken 1392 | . 387 1005 Core 260 | . 43 217 Absorbed by Shields . | . . . Core Remaining (%) 100 | 100 . . Volleys Fired 104 | 7 53 44 Largest 2 | 2 2 2 Hottest 120 | 40 80 120 Shots Fired 197 | 14 105 78 Gun 175 | 14 101 60 Cannon 12 | . 3 9 Launcher 10 | . 1 9 Special . | . . . Kinetic 151 | 14 101 36 Thermal 36 | . 3 33 Explosive 10 | . 1 9 Electromagnetic . | . . . Robot Hit Streak 21 | 7 10 21 Robot Miss Streak 9 | 4 9 3 Penetration Max . | . . . Secondary Targets 3 | . 1 2 Max Gunslinging Chain 1 | . 1 1 Shots Hit Robots 108 | 8 52 48 Core Hits 62 | 4 24 34 Critical Kills . | . . . Critical Parts Destroyed 1 | . 1 . Critical Strikes 1 | . 1 . Destroy 1 | . 1 . Melee Attacks . | . . . Impact . | . . . Slashing . | . . . Piercing . | . . . Sneak Attacks . | . . . Combat Hostiles . | . . . Follow-up Attacks . | . . . Damage Inflicted 1709 | 88 750 871 Guns 1241 | 88 546 607 Cannons 104 | . 52 52 Explosions 337 | . 125 212 Melee . | . . . Ramming 27 | . 27 . Kinetic 905 | 88 546 271 Thermal 440 | . 52 388 Explosive 337 | . 125 212 Electromagnetic . | . . . Impact . | . . . Slashing . | . . . Piercing . | . . . Highest Corruption . | . . . Average Corruption . | . . . Corruption Purged . | . . . Corruption Blocked . | . . . Overload Shots . | . . . Overflow Damage . | . . . Projectiles . | . . . Explosions . | . . . Melee . | . . . Knockbacks . | . . . Impact . | . . . Kinetic . | . . . Secondary . | . . . Self-Inflicted Damage 32 | . 18 14 Shots 2 | . 1 1 Rammed 6 | . 6 . Targets Rammed 7 | . 7 . Kicked . | . . . Crushed 1 | . 1 . Highest Temperature 18 | . 6 18 Average Temperature 7 | . 4 9 Received Heat Transfer 147 | . 36 111 Siege Activations . | . . . Martial Activations . | . . . Shielding Activations . | . . . Robots Disrupted . | . . . Combat Hostiles . | . . . Robots Corrupted . | . . . Combat Hostiles . | . . . Parts Fried . | . . . Impact Corruptions . | . . . Robots Melted . | . . . Combat Hostiles . | . . . Parts Melted . | . . . Heat Transferred 622 | . 111 511 Parts Sabotaged . | . . . Parts Stolen . | . . . Parts Stripped . | . . . Power Chain Reactions . | . . . Alert | -11 -10 -10 ------- Run | Yrd Mat Sub Maximum Alert Level 1 | . 1 . Low Security (%) 98 | 100 98 . Level 1 1 | . 1 . Level 2 . | . . . Level 3 . | . . . Level 4 . | . . . Level 5 . | . . . High Security . | . . . Max Security . | . . . Peak Influence 213 | 5 213 . Initial . | . . . Average 51 | 1 52 . Influence Increases 577 | 10 377 190 Destroy 0b10 Robot/C 380 | . 240 140 Destroy 0b10 Robot/NC 40 | 10 30 . Destroy Leader 86 | . 66 20 Successful Hack 33 | . 33 . Destroy Structure 8 | . 8 . Lose Combat Pursuer 30 | . . 30 Influence Decreases 577 | 10 377 190 Time Decay 557 | 10 377 170 Lost Part 20 | . . 20 Squads Dispatched 4 | . 4 . Investigation 2 | . 2 . Extermination . | . . . Reinforcement 2 | . 2 . Assault . | . . . Garrison . | . . . Intercept . | . . . Searches Triggered . | . . . Construction Impeded . | . . . Haulers Reinforced . | . . . Active Scanning Responses . | . . . Cargo Convoy Interrupts . | . . . Stealth | -11 -10 -10 --------- Run | Yrd Mat Sub Distress Signals 2 | . 2 . Communications Jammed . | . . . Distress Signals . | . . . Times Spotted 49 | . 27 22 Peak Tracking Total 5 | . 5 5 Tactical Retreats 1 | . . 1 Traps | -11 -10 -10 ------- Run | Yrd Mat Sub Traps Triggered 2 | . 2 . Indirectly . | . . . Trap Hack Attempts . | . . . Triggered . | . . . Disarmed . | . . . Reprogrammed . | . . . Reused . | . . . Traps Extracted . | . . . Installed . | . . . Triggered . | . . . Machines | -11 -10 -10 ---------- Run | Yrd Mat Sub Machines Disabled . | . . . Max in Single Turn . | . . . Machines Repaired . | . . . Machines Dismantled . | . . . Machines Sabotaged . | . . . Overloaded Fab Kills . | . . . Hacking | -11 -10 -10 --------- Run | Yrd Mat Sub Machines Accessed 8 | . 7 1 Terminals 5 | . 5 . Fabricators . | . . . Repair Stations . | . . . Recycling Units 2 | . 2 . Scanalyzers . | . . . Garrison Access . | . . . Total Hacks 26 | . 22 4 Successful 15 | . 11 4 Failed 11 | . 11 . Catastrophic 2 | . 2 . Database Lockouts . | . . . Manual 12 | . 12 . Terminals 16 | . 16 . Fabricators . | . . . Repair Stations . | . . . Recycling Units 6 | . 6 . Scanalyzers . | . . . Garrison Access . | . . . Terminal Hacks 12 | . 8 4 Record 4 | . . 4 Robot Analysis 5 | . 5 . Prototype ID Bank 3 | . 3 . Fabricator Hacks . | . . . Repair Station Hacks . | . . . Recycling Unit Hacks 1 | . 1 . Retrieve Components 1 | . 1 . Scanalyzer . | . . . Garrison Access Hacks . | . . . Unauthorized Hacks 2 | . 2 . Terminals . | . . . Fabricators . | . . . Repair Stations . | . . . Recycling Units 2 | . 2 . Reject 1 | . 1 . Recyclers 1 | . 1 . Scanalyzers . | . . . Garrison Access . | . . . Data Cores Recovered . | . . . Used . | . . . Hacking Detections 6 | . 6 . Full Trace Events 2 | . 2 . Feedback Events . | . . . Feedback Blocked . | . . . Robot Schematics Acquired . | . . . Robots Built . | . . . Authchips . | . . . Time . | . . . Total Robot Build Rating . | . . . Part Schematics Acquired . | . . . Parts Built . | . . . Authchips . | . . . Time . | . . . Total Part Build Rating . | . . . Part Studies Acquired . | . . . Parts Repaired . | . . . Time . | . . . Parts Recycled . | . . . Recycled Matter . | . . . Retrieved Matter . | . . . Retrieved Components 1 | . 1 . Parts Scanalyzed . | . . . Part Schematics Acquired . | . . . Parts Damaged . | . . . Bothacking | -11 -10 -10 ------------ Run | Yrd Mat Sub Used RIF Installer . | . . . Robots Hacked . | . . . Non-combat . | . . . Combat . | . . . Robot Hacks Applied . | . . . Relay Couplers Released . | . . . Fabnet Peak Effective % . | . . . Robots Rewired . | . . . Allies Hacked . | . . . Hacks Repelled . | . . . Allies | -11 -10 -10 -------- Run | Yrd Mat Sub Total Allies . | . . . Largest Group . | . . . Highest-Rated Group . | . . . Highest-Rated Ally . | . . . Total Orders . | . . . Ally Attacks . | . . . Total Damage . | . . . Kills . | . . . Allies Corrupted . | . . . Allies Melted . | . . . Intel | -11 -10 -10 ------- Run | Yrd Mat Sub Active Infowar (turns) 1762 | 17 1084 661 Structural 1673 | . 1012 661 Seismic 89 | 17 72 . Robot Analysis Total 5 | . 5 . Derelict Logs Recovered 1 | . . 1 Drone Launches . | . . . Drone Recoveries . | . . . Exploration | -11 -10 -10 ------------- Run | Yrd Mat Sub Turns Passed 3120 | 42 1937 1141 Spaces Moved 1683 | 11 1080 592 Core . | . . . Treads 1683 | 11 1080 592 Legs . | . . . Wheels . | . . . Hover . | . . . Flight . | . . . Fastest Speed 160 | 160 160 160 Average Speed 160 | 160 160 160 Slowest Speed 240 | 160 160 240 Overloaded Moves . | . . . Propulsion Burnouts . | . . . Robots Hopped . | . . . Potential Cave-ins . | . . . Cave-ins Triggered . | . . . Exploration Rate (%) 46 | 2 98 38 Regions Visited 2 Branch Regions 1 Pre-discovered Areas 1 | . . 1 Known Exits Taken . | . . . Unknown Exits Taken 2 | 1 1 . Scrap Searched . | . . . Spaces Dug . | . . . Terrain Destroyed 50 | . 8 42 Melee . | . . . Projectile . | . . . AOE 50 | . 8 42 Terrain Rammed . | . . . Walls Destroyed . | . . . Machines Disabled . | . . . Actions | -11 -10 -10 --------- Run | Yrd Mat Sub Total 1915 | 23 1189 703 Wait 61 | . 18 43 Move 1681 | 10 1079 592 Hop . | . . . Pick Up 19 | . 14 5 Fast Attach 4 | 1 1 2 Attach 8 | 2 . 6 Detach 3 | 2 1 . Swap 19 | 1 9 9 Drop 9 | . 7 2 Fire 104 | 7 53 44 Melee . | . . . Ram . | . . . Kick . | . . . Crush 7 | . 7 . Escape Stasis . | . . . Rewire . | . . . Trap . | . . . Miscellaneous . | . . . Route ------- -11/Scrapyard -10/Materials (discovered 5 exits: [*Mat x3] / [*Min] / *Sub) -10/Subcaves (discovered 2 exits: [*Mat] / [*Rec]) History --------- Turn | Location | Event 23 | -11/Scrapyard | Discovered new exit (range 3) 43 | -11/Scrapyard | Entered Materials 309 | -10/Materials | Build established: Mutant 389 | -10/Materials | Discovered new exit (range 13) 612 | -10/Materials | Discovered new exit (range 6) 628 | -10/Materials | Discovered new exit (range 12) 646 | -10/Materials | Discovered new exit (range 8) 673 | -10/Materials | Discovered new exit (range 16) 1980 | -10/Materials | Entered Subcaves 1981 | -10/Subcaves | Approached by a straggling Scientist 2235 | -10/Subcaves | Core integrity fell below 50% 2275 | -10/Subcaves | Lost 3 parts (2n1u) 2497 | -10/Subcaves | Visited Clippyterm 2502 | -10/Subcaves | Learned Factory trap positions 2502 | -10/Subcaves | Learned 40 Factory zone layouts 2561 | -10/Subcaves | Core integrity fell below 20% 2594 | -10/Subcaves | Discovered new exit (range 15) 2665 | -10/Subcaves | Build established: Scavenger-Mutant 2722 | -10/Subcaves | Discovered new exit (range 13) 3030 | -10/Subcaves | Build established: Mutant 3111 | -10/Subcaves | Visited 4L-MR0's lab 3121 | -10/Subcaves | Destroyed by 0T-LJ8(R) with Subdweller Machine Gun Last Messages --------------- 02612_ Switching to secondary target: S-10 Pest. 02612_ S-10 Pest destroyed. 02614_ Lgt. Ion Engine fries itself beyond repair. 02616_ Flight Unit fries itself beyond repair. 02623_ Lgt. Ion Engine fries itself beyond repair. 02671_ Acquired 13 matter. 02676_ Acquired 9 matter. 02677_ Acquired 10 matter. 02722_ EXIT=FOUND 02729_ IZ-LRU(R) destroyed. 02733_ KQ-UB7(R) destroyed. 02738_ Acquired 38 matter. 02745_ Subatomizers dissect the Sub. Power Source. 02754_ Acquired 29 matter. 02759_ Acquired Sub. Monowheel. 02762_ The unstable cave ceiling collapses. 02976_ Acquired 11 matter. 02981_ Acquired 3 matter. 03119_ Critical hit (Destroy). 03119_ Lgt. Treads destroyed. Map ----- +----------------------------------------------------+ | | | | | | | | | | | | | | | | | | | | | | | ?????????????????????????????????????????????????? | | ?????????????????????????????????????????????????? | | ?????????????????????????????????????????????????? | | ?????????????????????????????????????????????????? | | ?????????????????????????????????????????????????? | | ?????????????????????????????????????????????????? | | ?????????????????????????????????????????????????? | | ?????????????????????????????????????????????????? | | ???????????????????????????????###???????????????? | | ???????????????????????????????########??????????? | | ??????????????????????????????""""#" ##??????????? | | ??????????????????????####" "X" /"!##??????????? | | ??????????????????????###### #####?????????? | | ??????????????????????## RR #####?????????? | | ??????????????????????##<@###########"##?????????? | | ??????????????????????## ########### ##?????????? | | ??????????????????????##< "#####"" ##?????????? | | ??????????????????????##< # ###?????????? | | ????????????????????### ## "###?????????? | | ????????????????????####<<"## "#####??????????? | | ???????????????????########" #### ###???????? | | ??????????????????### ### " ## ##???????? | | ???###????????????### ###???????? | | ?? # ?????????????## ##????????? | | #?? ?????????????#### ###????????? | | ??? #????# ??????#### ## ####???????? | | ?? #??#?###????#### ### ###??????? | | ?? #? ### ???#### ### ##??????? | | ### # ?### ##### #### #### ###??????? | | ??## #### ########## ####??????? | | ???### # #######??#####???????? | | """#?????## ## ##??????####????????? | | " #??####### ##### ###############???????? | | " #### ####"" ################### ###???????? | | " " ###" # # ##### ## ##???????? | | """"" ##" # % ### % ##????????? | | # # # # "" #### %##????????? | | # ## ""#### "" #### #### % ##????????? | | ## """## "" #### ##### %##????????? | +----------------------------------------------------+ Best States ------------- Heat Dissipation 35 Energy Generation 10 Energy Capacity 250 Matter Stores 300 Matter Capacity 300 Sight Range 16 Terrain Scan Density 10 Armor Coverage 150 Evasion (%) 40 Recoil Reduction 2 Item Schematics ----------------- None Robot Schematics ------------------ None Fabricated ------------ Nothing Repaired ---------- Nothing Studied --------- None Alien Tech Used ----------------- None Achievements -------------- None Challenges ------------ None Game ------ Seed AntimatterDisruptionStreamer Manual? 0 Play Time 00:15:01 Cumulative 465.5 hours Start 2026.02.18 @ 22:24:24 End 2026.02.18 @ 22:39:07 Sessions 1 Manual Loads 0 Difficulty Rogue Special Mode None Game No. 222 Rogue 222 Adventurer 0 Explorer 0 Win Type - Total 15 Types 8/0/5/2/0/0/0/0/0/0 Lore% 72 Gallery% 72 Achievement% 53 Wizard Run 0 Options --------- Layout 0 ASCII 0 Keyboard 0 Movement Numpad Keybinds 0 Fullscreen 1 Font 18/SmallcapsGlow Map View 76x50 Zoom Use 0% Tactical HUD 1 Map Filters NONE Filters NONE Steam 1 RUN: aa39f6a2-8d8c-46eb-9b41-94b0dd9ec8bc